Workbook

Sheet Schedule
B3: Match | C3: Team 1 | D3: Team 2 | E3: Category | F3: Date | G3: Day | H3: Time
B4: 1 | C4: IND | D4: SL | E4: IND+PO | F4: 30-09-2025 | G4: Tuesday | H4: 15:00:00
B5: =B4+1 -> 2 | C5: AUS | D5: NZ | E5: Non India | F5: 2025-01-10 | G5: Wednesday | H5: 15:00:00
B6: 3 | C6: BAN | D6: PAK | E6: Non India | F6: 2025-02-10 | G6: Thursday | H6: 15:00:00
B7: 4 | C7: ENG | D7: SA | E7: Non India | F7: 2025-03-10 | G7: Friday | H7: 15:00:00
B8: 5 | C8: AUS | D8: SL | E8: Non India | F8: 2025-04-10 | G8: Saturday | H8: 15:00:00
B9: 6 | C9: IND | D9: PAK | E9: IND+PO | F9: 2025-05-10 | G9: Sunday | H9: 15:00:00
B10: 7 | C10: NZ | D10: SA | E10: Non India | F10: 2025-06-10 | G10: Monday | H10: 15:00:00
B11: 8 | C11: ENG | D11: BAN | E11: Non India | F11: 2025-07-10 | G11: Tuesday | H11: 15:00:00
B12: 9 | C12: AUS | D12: PAK | E12: Non India | F12: 2025-08-10 | G12: Wednesday | H12: 15:00:00
B13: 10 | C13: IND | D13: SA | E13: IND+PO | F13: 2025-09-10 | G13: Thursday | H13: 15:00:00
B14: 11 | C14: NZ | D14: BAN | E14: Non India | F14: 2025-10-10 | G14: Friday | H14: 15:00:00
B15: 12 | C15: ENG | D15: SL | E15: Non India | F15: 2025-11-10 | G15: Saturday | H15: 15:00:00
B16: 13 | C16: IND | D16: AUS | E16: IND+PO | F16: 2025-12-10 | G16: Sunday | H16: 15:00:00
B17: 14 | C17: SA | D17: BAN | E17: Non India | F17: 13-10-2025 | G17: Monday | H17: 15:00:00
B18: 15 | C18: NZ | D18: SL | E18: Non India | F18: 14-10-2025 | G18: Tuesday | H18: 15:00:00
B19: 16 | C19: ENG | D19: PAK | E19: Non India | F19: 15-10-2025 | G19: Wednesday | H19: 15:00:00
B20: 17 | C20: AUS | D20: BAN | E20: Non India | F20: 16-10-2025 | G20: Thursday | H20: 15:00:00
B21: 18 | C21: SA | D21: SL | E21: Non India | F21: 17-10-2025 | G21: Friday | H21: 15:00:00
B22: 19 | C22: NZ | D22: PAK | E22: Non India | F22: 18-10-2025 | G22: Saturday | H22: 15:00:00
B23: 20 | C23: IND | D23: ENG | E23: IND+PO | F23: 19-10-2025 | G23: Sunday | H23: 15:00:00
B24: 21 | C24: SL | D24: BAN | E24: Non India | F24: 20-10-2025 | G24: Monday | H24: 15:00:00
B25: 22 | C25: SA | D25: PAK | E25: Non India | F25: 21-10-2025 | G25: Tuesday | H25: 15:00:00
B26: 23 | C26: AUS | D26: ENG | E26: Non India | F26: 22-10-2025 | G26: Wednesday | H26: 15:00:00
B27: 24 | C27: IND | D27: NZ | E27: IND+PO | F27: 23-10-2025 | G27: Thursday | H27: 15:00:00
B28: 25 | C28: PAK | D28: SL | E28: Non India | F28: 24-10-2025 | G28: Friday | H28: 15:00:00
B29: 26 | C29: AUS | D29: SA | E29: Non India | F29: 25-10-2025 | G29: Saturday | H29: 15:00:00
B30: 27 | C30: ENG | D30: NZ | E30: Non India | F30: 26-10-2025 | G30: Sunday | H30: 11:00:00
B31: 28 | C31: IND | D31: BAN | E31: IND+PO | F31: 26-10-2025 | G31: Sunday | H31: 15:00:00
B32: 29 | C32: TBD | D32: TBD | E32: IND+PO | F32: 29-10-2025 | G32: Wednesday | H32: 15:00:00
B33: 30 | C33: TBD | D33: TBD | E33: IND+PO | F33: 30-10-2025 | G33: Thursday | H33: 15:00:00
B34: 31 | C34: TBD | D34: TBD | E34: IND+PO | F34: 2025-02-11 | G34: Sunday | H34: 15:00:00

Sheet RC
E3: Rate card - ICC WWC 25
B4: Ad-Unit | C4: Details | D4: Full tournament | E4: India + KO | F4: Non India
B5: HHWeb LIVE - Midroll/ Preroll | C5: ROS - 10s CPM | D5: 175 | E5: 300 | F5: 100
C6: L1 Targeted - 10s CPM | D6: 225 | E6: 380 | F6: 130
C7: L2 Targeted - 10s CPM | D7: 265 | E7: 450 | F7: =E7/E5*F5 -> 150
C8: *Interest based cohorts - 10s CPM | D8: 265 | E8: =E7 -> 450 | F8: 150
C9: iOS Cohort/10s CPM | D9: =D13 -> 400 | E9: 650 | F9: 250
B10: HHWeb VODs/ Highlights - MR | C10: ROS - 10s CPM | D10: 135 | E10: =115/150*E5 -> 230 | F10: 75
C11: L1 Targeted - 10s CPM | D11: 160 | E11: =135/115*E10 -> 270 | F11: 90
C12: L2 Targeted - 10s CPM | D12: 190 | E12: =160/115*E10 -> 320 | F12: 105
B13: CTV LIVE - Midroll/ Preroll | C13: ROS - 10s CPM | D13: 400 | E13: 650 | F13: 250
C14: L1 Targeted - 10s CPM | D14: 535 | E14: 870 | F14: =335/250*F13 -> 335
B15: CTV VODs - MR/PR | C15: ROS - 10s CPM | D15: 305 | E15: 495 | F15: =190/250*F13 -> 190
C16: L1 Targeted - 10s CPM | D16: =225/250*D13 -> 360 | E16: 585 | F16: 225
B17: Linear TV - SD +HD - Live | C17: FCT - 10s ASR | D17: =50000 -> 50000 | E17: =125000 -> 125000 | F17: =15000 -> 15000
B18: Linear TV - SD +HD - CTL - 2 | C18: FCT - 10s ASR | D18: =D17*0.75 -> 37500 | E18: 93750 | F18: 11250
B19: Linear TV - SD +HD - CTL - 1,3,4 | C19: FCT - 10s ASR | D19: =D17*0.5 -> 25000 | E19: 62500 | F19: 7500
B20: Linear TV - SD +HD - PPL | C20: FCT - 10s ASR | D20: =D17*0.25 -> 12500 | E20: 31250 | F20: 3750
B21: Linear TV - SD +HD - HLs | C21: FCT - 10s ASR | D21: =15000 -> 15000 | E21: =40000 -> 40000 | F21: =F17/3 -> 5000
B22: Linear TV - SD - Live | C22: FCT - 10s ASR | D22: =D17*0.7 -> 35000 | E22: 87500 | F22: 10500
B23: Linear TV - SD - CTL-2 | C23: FCT - 10s ASR | D23: =D22*0.75 -> 26250 | E23: 65625 | F23: 7875
B24: Linear TV - SD - CTL- 1,3,4 | C24: FCT - 10s ASR | D24: =D22*0.5 -> 17500 | E24: 43750 | F24: 5250
B25: Linear TV - SD - PPL | C25: FCT - 10s ASR | D25: =D20*0.7 -> 8750 | E25: 21875 | F25: 2625
B26: Linear TV - SD - HLs | C26: FCT - 10s ASR | D26: =D21*0.7 -> 10500 | E26: 28000 | F26: 3500
B27: Linear TV - HD - Live | C27: FCT - 10s ASR | D27: =D17*0.4 -> 20000 | E27: 50000 | F27: 6000
B28: Linear TV - HD - CTL-2 | C28: FCT - 10s ASR | D28: =D27*0.75 -> 15000 | E28: 37500 | F28: 4500
B29: Linear TV - HD - CTL- 1,3,4 | C29: FCT - 10s ASR | D29: =D27*0.5 -> 10000 | E29: 25000 | F29: 3000
B30: Linear TV - HD - PPL | C30: FCT - 10s ASR | D30: =D20*0.4 -> 5000 | E30: 12500 | F30: 1500
B31: Linear TV - HD - HLs | C31: FCT - 10s ASR | D31: =D21*0.4 -> 6000 | E31: 16000 | F31: 2000
B34: Ad-Unit | C34: Details | D34: Full tournament | E34: India + KO | F34: Non India
B35: HHWeb Masthead / Billboard | C35: ROS - CPM | D35: NA | E35: 75 | F35: NA | G35: =E35/1000 -> 0.075
C36: L1 Targeted - CPM | D36: NA | E36: 100 | F36: NA | G36: =E36/1000 -> 0.1
C37: L2 Targeted - CPM | D37: NA | E37: 125 | F37: NA | G37: 0.125
B38: CTV Masthead / Billboard | C38: ROS - CPM | D38: NA | E38: 300 | F38: NA | G38: 0.3
C39: L1 Targeted - CPM | D39: NA | E39: 400 | F39: NA | G39: 0.4
B40: Fence | C40: ROS - CPM | D40: 75 | E40: 75 | F40: 75
C41: L1 Targeted - CPM | D41: 100 | E41: 100 | F41: 100
C42: L2 Targeted - CPM | D42: 125 | E42: 125 | F42: 125
B43: Frame | C43: ROS - CPM | D43: 75 | E43: 75 | F43: 75
C44: L1 Targeted - CPM | D44: 100 | E44: 100 | F44: 100
C45: L2 Targeted - CPM | D45: 125 | E45: 125 | F45: 125
B46: Social Banner | C46: ROS - CPM | D46: 75 | E46: 75 | F46: 75
C47: L1 Targeted - CPM | D47: 100 | E47: 100 | F47: 100
C48: L2 Targeted - CPM | D48: 125 | E48: 125 | F48: 125
B49: HHWeb - Live Gen SUP - Per Exp | C49: ROS | D49: =12500 -> 12500 | E49: =E53 -> 31250 | F49: 3750
B50: HHWeb- PPL Gen SUP - Per Exp | C50: ROS | D50: 4200 | E50: 10500 | F50: =F49/3 -> 1250
B51: CTV - Live Gen SUP - Per Exp | C51: ROS | D51: =15000 -> 15000 | E51: =D51/D53*E53 -> 37500 | F51: =D51/D53*F53 -> 4500
B52: CTV - PPL Gen SUP - Per Exp | C52: ROS | D52: =D51/3 -> 5000 | E52: 12500 | F52: 1500
B53: Linear TV - SD +HD - Live Gen SUP - Per Exp | C53: ROS | D53: =12500 -> 12500 | E53: =E17/4 -> 31250 | F53: 3750
B54: Linear TV - SD +HD - PPL Gen SUP - Per Exp | C54: ROS | D54: 4200 | E54: 10500 | F54: =F53/3 -> 1250
B55: Linear TV - SD - Live Gen SUP - Per Exp | C55: ROS | D55: =D53*70% -> 8750 | E55: 21875 | F55: 2625
B56: Linear TV - SD - PPL Gen SUP - Per Exp | C56: ROS | D56: =D55/3 -> 2916.666667 | E56: 7291.666667 | F56: 875
B57: Linear TV - HD - Live Gen SUP - Per Exp | C57: ROS | D57: =D53*40% -> 5000 | E57: 12500 | F57: 1500
B58: Linear TV - HD - PPL Gen SUP - Per Exp | C58: ROS | D58: =D57/3 -> 1666.666667 | E58: 4166.666667 | F58: 500

Sheet Viewership (hidden)
Q1: 0.1
B2: 2022: | F2: 2023 | J2: 2024: | N2: 2025:
B3: Overall | C3: Ind+PO | D3: Non-Ind | F3: Overall | G3: Ind+PO | H3: Non-Ind | J3: Overall | K3: Ind+PO | L3: Non-Ind | N3: Overall | O3: Ind+PO | P3: Non-Ind
A4: # of days | F4: 16 | J4: 18 | N4: 28
A5: # of Matches | B5: 31 | C5: 10 | D5: 21 | F5: 23 | G5: 7 | H5: =F5-G5 -> 16 | J5: 23 | K5: 7 | L5: 16 | N5: 31 | O5: 10 | P5: 21
A6: Avg. Duration | B6: 420 | C6: 420 | D6: 420 | F6: 181 | G6: 189 | H6: 177 | J6: 179.87 | K6: 197.429 | L6: 172.188 | N6: 400 | O6: 400 | P6: 400
A8: HHW
A9: Avg. DAU | J9: 28.28 | K9: 30.1 | L9: 27.5 | N9: 44.3843 | O9: 42.6833 | P9: 45.1943
A10: Avg. Live VVs | B10: 0.9211761 | C10: 2.005632 | D10: 0.4047678 | F10: 1.85 | G10: 4.78 | H10: 0.57 | J10: 1.86 | K10: 4 | L10: 0.9 | N10: 4.4793 | O10: 8.8769 | P10: 2.3851
A11: WT/user/match | B11: 17.1 | C11: 22.5 | D11: 14.4 | F11: 27.30481873 | G11: 30.57629143 | H11: 16.22626263 | J11: 13.9 | K11: 16.5 | L11: 12.8 | N11: 22.4981 | O11: 26.0792 | P11: 16.1516
A12: Total WT | B12: 710.5378041 | C12: 567.2493 | D12: 143.2881 | F12: 1184.68 | G12: 1024.03 | H12: 160.64 | J12: =SUM(K12:L12) -> 653.2 | K12: 453.9 | L12: 199.3 | N12: =SUM(O12:P12) -> 3124.011309 | O12: =O11*O10*O5 -> 2315.024505 | P12: 808.9868044
A13: Conc. | B13: 0.054 | C13: 0.135 | D13: 0.018 | F13: =F12/(F5*F6) -> 0.2845736248 | G13: 0.774021164 | H13: 0.05672316384 | J13: 0.1486 | K13: 0.32 | L13: 0.07 | N13: 0.2584 | O13: 0.5936 | P13: 0.0988
A14: Cume Live | B14: 9.153 | F14: 15 | J14: 19.1 | N14: 71.125
A15: Cume Live+VOD | B15: 10.17 | J15: 22.3932 | N15: 83.389
A16: Cume Platform reach | J16: 118.8 | N16: 255.731
A18: CTV
A19: Avg. DAU | J19: 5.71 | K19: 5.83 | L19: 5.66 | N19: 10.4464 | O19: 10.4464 | P19: 10.4464
A20: Avg. Live VVs | B20: 0.1023529 | C20: 0.222848 | D20: 0.0449742 | F20: 0.3 | G20: 0.6 | H20: 0.1 | J20: 0.31 | K20: 0.58 | L20: 0.2 | N20: 0.6986 | O20: 1.2471 | P20: 0.4374
A21: WT/user/match | B21: 1.9 | C21: 2.5 | D21: 1.6 | F21: 48.38928571 | G21: 57.9425 | H21: 26.14 | J21: 45.67213 | K21: 60.22071 | L21: 39.30713 | N21: 68.234 | O21: 104.301 | P21: 51.059
A22: Total WT | B22: 78.9486449 | C22: 63.0277 | D22: 15.9209 | F22: 270.98 | G22: 231.77 | H22: 39.21 | J22: =SUM(K22:L22) -> 387.6 | K22: 256.6 | L22: 131 | N22: =SUM(O22:P22) -> 1769.73511 | O22: =O21*O20*O5 -> 1300.737771 | P22: 468.9973386
A23: Conc. | B23: 0.006 | C23: 0.015 | D23: 0.002 | F23: =F22/(F6*F5) -> 0.06509248138 | G23: 0.1751851852 | H23: 0.01384533898 | J23: 0.09 | K23: 0.18207 | L23: 0.04778 | N23: 0.1222 | O23: 0.3335 | P23: 0.0573
A24: Cume Live | B24: 0.113 | F24: 1.5 | J24: 2.3 | N24: 7.12209
A25: Cume Live+VOD | B25: 1.13 | J25: 2.4 | N25: 7.43175
A26: Cume Platform reach | J26: 18.9 | N26: 29.6378
A28: LTV | J28: 102 | K28: 84.85 | L28: 24.57 | N28: 180-195
A29: TVR % | B29: 0.1039 | C29: 0.233 | D29: 0.044 | F29: 0.2911 | G29: 0.78 | H29: 0.08 | J29: 0.41 | K29: 0.76 | L29: 0.13 | N29: 0.44 | O29: 1.1 | P29: 0.15
O41: reach
O42: reach growth
O43: concurrency inc due to WT or Reach
O44: same for TVR
O45: what is the channel mix
O46: marketing gave this number or have you changed

Sheet Targeting
B3: Type | C3: Sr. No | D3: HHW Standard Cohorts | F3: Sr. No | G3: CTV Standard Cohorts
B4: Region | C4: 1 | D4: ROS | F4: 1 | G4: ROS
C5: =C4+1 -> 2 | D5: ROS minus Gaming Darkmarkets | F5: 2 | G5: HSM
C6: 3 | D6: HSM | F6: 3 | G6: Southern States
C7: 4 | D7: Southern States | F7: 4 | G7: Top 6 metros
C8: 5 | D8: West India | F8: 5 | G8: 1 Mn + Towns
C9: 6 | D9: East India
C10: 7 | D10: NE India
C11: 8 | D11: North India
C12: 9 | D12: Top 6 metros
C13: 10 | D13: Top 10 metros
C14: 11 | D14: 1 Mn + Towns
B15: States | C15: 12 | D15: Andhra Pradesh
C16: 13 | D16: Telangana
C17: 14 | D17: Arunachal Pradesh
C18: 15 | D18: Assam
C19: 16 | D19: Bihar
C20: 17 | D20: Jharkhand
C21: 18 | D21: Chandigarh
C22: 19 | D22: Goa
C23: 20 | D23: Gujarat+Dadra & Nagar Haveli+Daman&Diu
C24: 21 | D24: JK + Ladakh
C25: 22 | D25: Karnataka
C26: 23 | D26: Kerala
C27: 24 | D27: Maharashtra
C28: 25 | D28: Tripura+Manipur+Meghalaya
C29: 26 | D29: Mizoram
C30: 27 | D30: Madhya Pradesh
C31: 28 | D31: Chhattisgarh
C32: 29 | D32: Nagaland
C33: 30 | D33: Odisha
C34: 31 | D34: Punjab
C35: 32 | D35: Haryana
C36: 33 | D36: Himachal Pradesh
C37: 34 | D37: Rajasthan
C38: 35 | D38: Sikkim
C39: 36 | D39: Tamil Nadu + Pondicherry
C40: 37 | D40: Uttar Pradesh
C41: 38 | D41: Uttarakhand
C42: 39 | D42: West Bengal
B43: Cities | C43: 40 | D43: Mumbai
C44: 41 | D44: Delhi NCR
C45: 42 | D45: Kolkata
C46: 43 | D46: Chennai
C47: 44 | D47: Hyderabad
C48: 45 | D48: Bangalore
C49: 46 | D49: Pune
C50: 47 | D50: Ahmedabad
C51: 48 | D51: Kochi+Ernakalum
C52: 49 | D52: Lucknow
C53: 50 | D53: Agra
C54: 51 | D54: Allahabad
C55: 52 | D55: Bhopal
C56: 53 | D56: Coimbatore
C57: 54 | D57: Indore
C58: 55 | D58: Jaipur
C59: 56 | D59: Kanpur
C60: 57 | D60: Ludhiana
C61: 58 | D61: Nagpur
C62: 59 | D62: Patna
C63: 60 | D63: Ranchi
C64: 61 | D64: Surat
C65: 62 | D65: Vadodara
C66: 63 | D66: Varanasi
C67: 64 | D67: Aurangabad
C68: 65 | D68: Bhubaneswar
C69: 66 | D69: Dehradun
C70: 67 | D70: Guwahati
C71: 68 | D71: Amritsar
C72: 69 | D72: Madurai
C73: 70 | D73: Nashik
C74: 71 | D74: Visakhapatnam
B75: Affluence | C75: 72 | D75: iOS Cohort
C76: 73 | D76: NCCS - AB
C77: 74 | D77: Premium Cohort
C78: 75 | D78: 25K+ Devices
C79: 76 | D79: 15K+ Devices
C80: 77 | D80: <15K Devices
B81: Demo | C81: 78 | D81: 35 Yrs+
C82: 79 | D82: <35 Yrs
C83: 80 | D83: Male
C84: 81 | D84: Female
B86: *Cohort selection is available as per feasibility check.
B87: For Cross tabs check with customization team for feasibility
B88: No cross tab is available for iOS Cohort
B89: Top 6 metros (Mumbai, Delhi, Bangalore, Kolkata, Hyd, Chennai)
B90: Top 10 metros (Top 6 Metros + Pune + Ahmedabad + Lucknow + Cochin)

Sheet T&Cs
A1: Terms & Conditions
A2: 1) All the creatives as per specs have to be QC and S&P approved by Star India 5 business days in advance of going live
A3: 3) Entire Billing will be done on Star India Pvt. Ltd. reports on Impressions only across Live & Pre/Post Show ; 3rd party tracker reports (where applicable) will not be considered for billing
A4: 4) No Guarantee on no. of spots/insertions per match
A5: 5) No per creative/per feed impression guarantee.Please refer the specs document for specifications of each creative.
A6: 6) If the client chooses Standard Targeting then they need to inform which cohort before the deal is closed and only after JioHotstar's confirmation on inventory availability. No changes allowed in cohort and impressions at a later stage
A7: 7) Midroll CPM Rate to be pro rated basis edit length
A8: 8) Creative should be full motion video with sound
A9: 9) Net deliverable shall be the total number of impressions booked by the client for the campaign duration
A10: 10) Prerolls are available on Desktop and APP; No Time Targeting Possible
A11: 11) Preroll can be max upto 10s only
A12: 12) Taxes extra as applicable.
A14: Squeeze ups/ L-bands : Terms & Conditions
A15: 1) RO to be in the name of Star India Pvt. Ltd
A16: 2) Maximum of 2 L-bands/ Squeeze ups Per Over for an advertiser.
A17: 3) Milestones/ Custom Squeeze Ups will get priority: if a 4/6 coincides with Milestone, in that case SqueezeUps for such 4s/6s will be run at random during the same or next match. Similarly, a custom squeeze-up will get higher priority over any other squeeze-up (4/6/Milestone/ FOW) and such 4s/6s/Milestones/FOW will be run at random during the same or next match. In case of higher number of feature instances / over, few instances might get missed across all of the features.
A18: 4) Billing will be done on Star India Pvt. Ltd reports,No targeting & clickability is possible
A19: 5) There will be no 3P Impression Tracking or Reach Reporting of the Feature Package.
A20: 6) Squeeze Up duration - approx 3-5 secs. Please refer the specs document for specifications of each creative
A21: 7) All the creatives as per specs have to be QC and S&P approved by Star India Pvt. Ltd. 2 business days in advance of going live
A22: 8) This is subject to board / event guidelines of limitations on per over/full match exposure
A23: 9) RO value for the Feature will be segregated proportionately amongst all the matches and invoices will be raised accordingly; irrespective of the occurrence of the event.
A24: 10) This package is subject to the board guidelines.We will need to go back to the board's Official Sponsors (once announced by the board) as per the Right of First Right of Refusal clause for each tournament (in the same category)
A25: 11)In case of shorter duration of matches due to early finishes or weather related conditions or any other reason, JioHotstar is not liable to give make goods for dropped features from the above
A26: 12)Taxes extra as applicable.
